[Event "Titled Tuesday Blitz November 22 Early 2022"]
[White "Kuzmin, Roman"]
[Black "Mrudul Dehankar"]
[WhiteFideId "44134932"]
[BlackFideId "25096990"]
[WhiteElo "2197"]
[BlackElo "2068"]
[Result "0-1"]
[Round "02"]
[TimeControl "180+1"]
[Date "2022.11.23"]
[WhiteClock "0:00:16"]
[BlackClock "0:00:06"]

1. e4 {[%clk 0:02:59]}  c5 {[%clk 0:02:52]} 2. Nf3 {[%clk 0:02:59]}  d6 {[%clk 0:02:53]} 3. d4 {[%clk 0:02:59]}  cxd4 {[%clk 0:02:53]} 4. Nxd4 {[%clk 0:03:00]}  Nf6 {[%clk 0:02:54]} 5. Nc3 {[%clk 0:03:01]}  a6 {[%clk 0:02:54]} 6. Be2 {[%clk 0:03:02]}  e6 {[%clk 0:02:54]} 7. O-O {[%clk 0:03:00]}  Qc7 {[%clk 0:02:54]} 8. f4 {[%clk 0:03:00]}  Nbd7 {[%clk 0:02:54]} 9. Bf3 {[%clk 0:02:57]}  Be7 {[%clk 0:02:52]} 10. Be3 {[%clk 0:02:52]}  Nb6 {[%clk 0:02:44]} 11. e5 {[%clk 0:02:17]}  dxe5 {[%clk 0:01:47]} 12. fxe5 {[%clk 0:02:18]}  Qxe5 {[%clk 0:01:47]} 13. Re1 {[%clk 0:02:02]}  Nc4 {[%clk 0:01:42]} 14. Bf2 {[%clk 0:01:56]}  Qc7 {[%clk 0:01:22]} 15. Qe2 {[%clk 0:01:25]}  Nxb2 {[%clk 0:01:12]} 16. Ncb5 {[%clk 0:01:23]}  axb5 {[%clk 0:01:08]} 17. Qxb5+ {[%clk 0:01:23]}  Bd7 {[%clk 0:01:00]} 18. Qxb2 {[%clk 0:01:23]}  O-O {[%clk 0:00:27]} 19. Qxb7 {[%clk 0:01:23]}  Qf4 {[%clk 0:00:26]} 20. Be3 {[%clk 0:01:06]}  Qe5 {[%clk 0:00:16]} 21. Qxa8 {[%clk 0:01:00]}  Rxa8 {[%clk 0:00:15]} 22. Bxa8 {[%clk 0:01:01]}  Ng4 {[%clk 0:00:15]} 23. Nf3 {[%clk 0:00:59]}  Qb8 {[%clk 0:00:12]} 24. Rad1 {[%clk 0:00:45]}  Be8 {[%clk 0:00:07]} 25. Be4 {[%clk 0:00:32]}  Nxe3 {[%clk 0:00:07]} 26. Rxe3 {[%clk 0:00:33]}  Bc5 {[%clk 0:00:07]} 27. Nd4 {[%clk 0:00:34]}  e5 {[%clk 0:00:06]} 28. c3 {[%clk 0:00:26]}  exd4 {[%clk 0:00:07]} 29. cxd4 {[%clk 0:00:26]}  Qf4 {[%clk 0:00:07]} 30. Ree1 {[%clk 0:00:21]}  Bb4 {[%clk 0:00:07]} 31. Re2 {[%clk 0:00:13]}  Bb5 {[%clk 0:00:07]} 32. Rc2 {[%clk 0:00:11]}  Qxe4 {[%clk 0:00:06]} 33. Rc8+ {[%clk 0:00:12]}  Bf8 {[%clk 0:00:07]} 34. d5 {[%clk 0:00:13]}  Qe3+ {[%clk 0:00:07]} 35. Kh1 {[%clk 0:00:13]}  Qe2 {[%clk 0:00:07]} 36. Rg1 {[%clk 0:00:12]}  Bd7 {[%clk 0:00:08]} 37. Rd8 {[%clk 0:00:12]}  Qe7 {[%clk 0:00:08]} 38. Rb8 {[%clk 0:00:13]}  Qd6 {[%clk 0:00:07]} 39. Rd8 {[%clk 0:00:14]}  Qxd5 {[%clk 0:00:07]} 40. h3 {[%clk 0:00:14]}  Qc6 {[%clk 0:00:06]} 41. a4 {[%clk 0:00:14]}  Qxa4 {[%clk 0:00:05]} 42. Rd1 {[%clk 0:00:13]}  Be6 {[%clk 0:00:05]} 43. Rb1 {[%clk 0:00:12]}  h5 {[%clk 0:00:05]} 44. Rbb8 {[%clk 0:00:12]}  Qa1+ {[%clk 0:00:04]} 45. Kh2 {[%clk 0:00:13]}  Qe5+ {[%clk 0:00:05]} 46. Kg1 {[%clk 0:00:13]}  Qc5+ {[%clk 0:00:05]} 47. Kf1 {[%clk 0:00:13]}  h4 {[%clk 0:00:05]} 48. Ke2 {[%clk 0:00:13]}  g6 {[%clk 0:00:05]} 49. Kd3 {[%clk 0:00:12]}  Kg7 {[%clk 0:00:06]} 50. Ke4 {[%clk 0:00:13]}  Bf5+ {[%clk 0:00:06]} 51. Kf4 {[%clk 0:00:14]}  Be7 {[%clk 0:00:06]} 52. Rg8+ {[%clk 0:00:12]}  Kf6 {[%clk 0:00:06]} 53. Kf3 {[%clk 0:00:12]}  Bd6 {[%clk 0:00:07]} 54. Ke2 {[%clk 0:00:12]}  Qe5+ {[%clk 0:00:07]} 55. Kd2 {[%clk 0:00:12]}  Qf4+ {[%clk 0:00:06]} 56. Kc3 {[%clk 0:00:13]}  Be5+ {[%clk 0:00:06]} 57. Kb3 {[%clk 0:00:13]}  Be6+ {[%clk 0:00:07]} 58. Kc2 {[%clk 0:00:13]}  Qc4+ {[%clk 0:00:06]} 59. Kd2 {[%clk 0:00:13]}  Bf4+ {[%clk 0:00:07]} 60. Kd1 {[%clk 0:00:13]}  Qd3+ {[%clk 0:00:06]} 61. Ke1 {[%clk 0:00:13]}  Qd2+ {[%clk 0:00:06]} 62. Kf1 {[%clk 0:00:13]}  Bc4+ {[%clk 0:00:07]} 63. Kg1 {[%clk 0:00:14]}  Be3+ {[%clk 0:00:07]} 64. Kh2 {[%clk 0:00:15]}  Bf4+ {[%clk 0:00:06]} 65. Kh1 {[%clk 0:00:16]}  Qe1# {[%clk 0:00:06]} 0-1


[Site "https://www.chess.com"]

[Event "Titled Tuesday Blitz November 22 Early 2022"]
[White "Le Goff, Damien"]
[Black "Sokolovsky, Yahli"]
[WhiteFideId "634808"]
[BlackFideId "2820242"]
[WhiteElo "2362"]
[BlackElo "2316"]
[Result "1/2-1/2"]
[Round "02"]
[TimeControl "180+1"]
[Date "2022.11.23"]
[WhiteClock "0:00:31"]
[BlackClock "0:00:26"]

1. d4 {[%clk 0:03:00]}  d6 {[%clk 0:03:00]} 2. Nf3 {[%clk 0:03:00]}  g6 {[%clk 0:02:57]} 3. c4 {[%clk 0:02:59]}  Bg7 {[%clk 0:02:57]} 4. Nc3 {[%clk 0:02:59]}  Nf6 {[%clk 0:02:57]} 5. e4 {[%clk 0:03:00]}  O-O {[%clk 0:02:57]} 6. Be2 {[%clk 0:02:59]}  Bg4 {[%clk 0:02:57]} 7. Ng1 {[%clk 0:02:58]}  Bd7 {[%clk 0:02:55]} 8. Be3 {[%clk 0:02:58]}  Nc6 {[%clk 0:02:53]} 9. Nf3 {[%clk 0:02:55]}  Ng4 {[%clk 0:02:44]} 10. Bg5 {[%clk 0:02:50]}  h6 {[%clk 0:02:42]} 11. Bc1 {[%clk 0:02:49]}  e5 {[%clk 0:02:35]} 12. dxe5 {[%clk 0:02:43]}  Ngxe5 {[%clk 0:02:31]} 13. Nxe5 {[%clk 0:02:41]}  dxe5 {[%clk 0:02:31]} 14. Be3 {[%clk 0:02:39]}  Nd4 {[%clk 0:02:31]} 15. O-O {[%clk 0:02:31]}  Be6 {[%clk 0:02:26]} 16. Qd2 {[%clk 0:02:26]}  Qd7 {[%clk 0:02:25]} 17. Rfd1 {[%clk 0:02:21]}  Rad8 {[%clk 0:02:19]} 18. Bf1 {[%clk 0:02:16]}  Kh7 {[%clk 0:02:18]} 19. Nb5 {[%clk 0:02:13]}  Qc6 {[%clk 0:01:44]} 20. Bxd4 {[%clk 0:01:44]}  exd4 {[%clk 0:01:40]} 21. Bd3 {[%clk 0:01:41]}  Bxc4 {[%clk 0:01:20]} 22. Rac1 {[%clk 0:01:37]}  Qxb5 {[%clk 0:01:16]} 23. Rxc4 {[%clk 0:01:32]}  Qd7 {[%clk 0:01:13]} 24. Qa5 {[%clk 0:01:28]}  c6 {[%clk 0:01:08]} 25. Qxa7 {[%clk 0:01:20]}  Ra8 {[%clk 0:01:08]} 26. Qb6 {[%clk 0:01:19]}  Rxa2 {[%clk 0:01:08]} 27. Rb4 {[%clk 0:01:19]}  Rb8 {[%clk 0:01:00]} 28. g3 {[%clk 0:01:13]}  Raa8 {[%clk 0:00:53]} 29. Kg2 {[%clk 0:01:07]}  h5 {[%clk 0:00:53]} 30. f4 {[%clk 0:01:04]}  h4 {[%clk 0:00:53]} 31. e5 {[%clk 0:01:02]}  h3+ {[%clk 0:00:54]} 32. Kf3 {[%clk 0:00:58]}  Rd8 {[%clk 0:00:25]} 33. Qxb7 {[%clk 0:00:55]}  c5 {[%clk 0:00:11]} 34. Qxd7 {[%clk 0:00:51]}  Rxd7 {[%clk 0:00:12]} 35. Rb5 {[%clk 0:00:50]}  Rc7 {[%clk 0:00:12]} 36. b3 {[%clk 0:00:49]}  Ra2 {[%clk 0:00:12]} 37. Be2 {[%clk 0:00:32]}  f6 {[%clk 0:00:06]} 38. e6 {[%clk 0:00:30]}  Re7 {[%clk 0:00:05]} 39. Bc4 {[%clk 0:00:29]}  Rxh2 {[%clk 0:00:04]} 40. Rxc5 {[%clk 0:00:30]}  f5 {[%clk 0:00:05]} 41. Rc8 {[%clk 0:00:24]}  Rb2 {[%clk 0:00:05]} 42. Rh1 {[%clk 0:00:23]}  h2 {[%clk 0:00:05]} 43. Rd8 {[%clk 0:00:22]}  Rd2 {[%clk 0:00:03]} 44. Rd7 {[%clk 0:00:20]}  Bf6 {[%clk 0:00:04]} 45. Rxe7+ {[%clk 0:00:20]}  Bxe7 {[%clk 0:00:05]} 46. g4 {[%clk 0:00:20]}  fxg4+ {[%clk 0:00:03]} 47. Kxg4 {[%clk 0:00:21]}  Bd6 {[%clk 0:00:04]} 48. Kg3 {[%clk 0:00:21]}  Kg7 {[%clk 0:00:04]} 49. e7 {[%clk 0:00:21]}  Bxe7 {[%clk 0:00:04]} 50. Rxh2 {[%clk 0:00:22]}  Rxh2 {[%clk 0:00:04]} 51. Kxh2 {[%clk 0:00:22]}  Bd6 {[%clk 0:00:05]} 52. Kg3 {[%clk 0:00:23]}  g5 {[%clk 0:00:06]} 53. Kf3 {[%clk 0:00:23]}  Bxf4 {[%clk 0:00:06]} 54. b4 {[%clk 0:00:21]}  Bd6 {[%clk 0:00:04]} 55. b5 {[%clk 0:00:21]}  Bc5 {[%clk 0:00:05]} 56. Bd3 {[%clk 0:00:22]}  Kf6 {[%clk 0:00:05]} 57. Kg4 {[%clk 0:00:22]}  Bb6 {[%clk 0:00:05]} 58. Kf3 {[%clk 0:00:23]}  Ke5 {[%clk 0:00:05]} 59. Kg4 {[%clk 0:00:23]}  Bd8 {[%clk 0:00:04]} 60. Kf3 {[%clk 0:00:23]}  Kd6 {[%clk 0:00:04]} 61. Ke4 {[%clk 0:00:23]}  Kc5 {[%clk 0:00:05]} 62. Kf5 {[%clk 0:00:20]}  Kb4 {[%clk 0:00:04]} 63. Be2 {[%clk 0:00:18]}  Kc5 {[%clk 0:00:04]} 64. Ke4 {[%clk 0:00:18]}  Bc7 {[%clk 0:00:03]} 65. Kd3 {[%clk 0:00:17]}  Bf4 {[%clk 0:00:03]} 66. Ke4 {[%clk 0:00:18]}  Bc7 {[%clk 0:00:03]} 67. Kf5 {[%clk 0:00:16]}  Bf4 {[%clk 0:00:03]} 68. Ke4 {[%clk 0:00:16]}  Be3 {[%clk 0:00:03]} 69. Kf5 {[%clk 0:00:16]}  Kb6 {[%clk 0:00:03]} 70. Ke4 {[%clk 0:00:16]}  Ka5 {[%clk 0:00:03]} 71. Kf5 {[%clk 0:00:17]}  Kb6 {[%clk 0:00:01]} 72. Ke4 {[%clk 0:00:17]}  Bf2 {[%clk 0:00:02]} 73. Kf5 {[%clk 0:00:17]}  Bh4 {[%clk 0:00:03]} 74. Ke4 {[%clk 0:00:17]}  Kc5 {[%clk 0:00:03]} 75. Kf5 {[%clk 0:00:17]}  Kd6 {[%clk 0:00:03]} 76. Ke4 {[%clk 0:00:17]}  Bf2 {[%clk 0:00:04]} 77. Kf5 {[%clk 0:00:18]}  Be3 {[%clk 0:00:05]} 78. Ke4 {[%clk 0:00:18]}  Kc5 {[%clk 0:00:05]} 79. Kf5 {[%clk 0:00:19]}  Kd5 {[%clk 0:00:06]} 80. Bd3 {[%clk 0:00:17]}  Bf4 {[%clk 0:00:06]} 81. Kg4 {[%clk 0:00:17]}  Kc5 {[%clk 0:00:06]} 82. Kf5 {[%clk 0:00:17]}  Kb4 {[%clk 0:00:05]} 83. Be2 {[%clk 0:00:17]}  Kc3 {[%clk 0:00:05]} 84. b6 {[%clk 0:00:17]}  d3 {[%clk 0:00:06]} 85. Bf3 {[%clk 0:00:17]}  d2 {[%clk 0:00:05]} 86. b7 {[%clk 0:00:17]}  Kd3 {[%clk 0:00:05]} 87. Kg4 {[%clk 0:00:17]}  Ke3 {[%clk 0:00:05]} 88. Bd1 {[%clk 0:00:16]}  Kf2 {[%clk 0:00:06]} 89. b8=Q {[%clk 0:00:16]}  Bxb8 {[%clk 0:00:06]} 90. Kxg5 {[%clk 0:00:16]}  Ke1 {[%clk 0:00:07]} 91. Ba4 {[%clk 0:00:17]}  Ke2 {[%clk 0:00:06]} 92. Kf5 {[%clk 0:00:17]}  Kd3 {[%clk 0:00:07]} 93. Bd1 {[%clk 0:00:16]}  Ke3 {[%clk 0:00:07]} 94. Bh5 {[%clk 0:00:17]}  Bc7 {[%clk 0:00:06]} 95. Bd1 {[%clk 0:00:18]}  Kf2 {[%clk 0:00:06]} 96. Bh5 {[%clk 0:00:19]}  Kg3 {[%clk 0:00:07]} 97. Bd1 {[%clk 0:00:19]}  Kh4 {[%clk 0:00:07]} 98. Ba4 {[%clk 0:00:20]}  Kg3 {[%clk 0:00:07]} 99. Ke4 {[%clk 0:00:20]}  Kf2 {[%clk 0:00:08]} 100. Kd3 {[%clk 0:00:20]}  Ke1 {[%clk 0:00:09]} 101. Bc2 {[%clk 0:00:21]}  Bd6 {[%clk 0:00:09]} 102. Bb3 {[%clk 0:00:21]}  Be7 {[%clk 0:00:10]} 103. Bc2 {[%clk 0:00:21]}  Bf6 {[%clk 0:00:11]} 104. Bb3 {[%clk 0:00:22]}  Bg5 {[%clk 0:00:12]} 105. Bc2 {[%clk 0:00:23]}  Bh4 {[%clk 0:00:13]} 106. Bb3 {[%clk 0:00:23]}  Bf2 {[%clk 0:00:14]} 107. Bc2 {[%clk 0:00:24]}  Bb6 {[%clk 0:00:15]} 108. Bb3 {[%clk 0:00:25]}  Bc7 {[%clk 0:00:16]} 109. Bc2 {[%clk 0:00:26]}  Bd8 {[%clk 0:00:17]} 110. Bb3 {[%clk 0:00:27]}  Be7 {[%clk 0:00:17]} 111. Bc2 {[%clk 0:00:28]}  Bg5 {[%clk 0:00:18]} 112. Bb3 {[%clk 0:00:28]}  Kf2 {[%clk 0:00:19]} 113. Bc2 {[%clk 0:00:29]}  Kf3 {[%clk 0:00:20]} 114. Bd1+ {[%clk 0:00:28]}  Kf2 {[%clk 0:00:21]} 115. Bc2 {[%clk 0:00:29]}  Kf1 {[%clk 0:00:21]} 116. Bb3 {[%clk 0:00:29]}  Ke1 {[%clk 0:00:22]} 117. Bc2 {[%clk 0:00:29]}  Bf4 {[%clk 0:00:23]} 118. Bb3 {[%clk 0:00:29]}  Be5 {[%clk 0:00:24]} 119. Bc2 {[%clk 0:00:30]}  Bd6 {[%clk 0:00:25]} 120. Bb3 {[%clk 0:00:30]}  Bc7 {[%clk 0:00:26]} 121. Bc2 {[%clk 0:00:31]} 1/2-1/2


[Site "https://www.chess.com"]

[Event "Titled Tuesday Blitz November 22 Early 2022"]
[White "Le, Tuan Minh"]
[Black "Atakishiyev, Elmar"]
[WhiteFideId "12401153"]
[BlackFideId "13410547"]
[WhiteElo "2530"]
[BlackElo "2194"]
[Result "1-0"]
[Round "02"]
[TimeControl "180+1"]
[Date "2022.11.22"]
[WhiteClock "0:00:09"]
[BlackClock "0:00:17"]

1. d4 {[%clk 0:03:00]}  Nf6 {[%clk 0:02:59]} 2. Nf3 {[%clk 0:03:01]}  g6 {[%clk 0:02:59]} 3. Bg5 {[%clk 0:03:01]}  Bg7 {[%clk 0:02:59]} 4. Nbd2 {[%clk 0:03:00]}  O-O {[%clk 0:02:59]} 5. c3 {[%clk 0:03:00]}  d6 {[%clk 0:02:57]} 6. e4 {[%clk 0:02:59]}  c5 {[%clk 0:02:57]} 7. dxc5 {[%clk 0:03:00]}  dxc5 {[%clk 0:02:57]} 8. Bc4 {[%clk 0:03:00]}  Nc6 {[%clk 0:02:55]} 9. Qe2 {[%clk 0:03:00]}  Qc7 {[%clk 0:02:55]} 10. O-O {[%clk 0:03:00]}  h6 {[%clk 0:02:55]} 11. Bxf6 {[%clk 0:03:00]}  Bxf6 {[%clk 0:02:52]} 12. Qe3 {[%clk 0:03:00]}  Ne5 {[%clk 0:02:42]} 13. Nxe5 {[%clk 0:02:58]}  Bxe5 {[%clk 0:02:43]} 14. Qxh6 {[%clk 0:02:58]}  b5 {[%clk 0:02:23]} 15. Bd5 {[%clk 0:02:37]}  Bg7 {[%clk 0:02:17]} 16. Qh4 {[%clk 0:02:17]}  Rb8 {[%clk 0:02:14]} 17. Nf3 {[%clk 0:02:17]}  e6 {[%clk 0:02:06]} 18. Bb3 {[%clk 0:02:10]}  c4 {[%clk 0:02:01]} 19. Bc2 {[%clk 0:02:09]}  b4 {[%clk 0:02:01]} 20. Rad1 {[%clk 0:01:20]}  bxc3 {[%clk 0:01:54]} 21. bxc3 {[%clk 0:01:19]}  Bb7 {[%clk 0:01:30]} 22. Ng5 {[%clk 0:01:13]}  Rfd8 {[%clk 0:01:30]} 23. f4 {[%clk 0:01:11]}  Rxd1 {[%clk 0:01:18]} 24. Bxd1 {[%clk 0:01:12]}  Qb6+ {[%clk 0:01:13]} 25. Kh1 {[%clk 0:01:11]}  Qe3 {[%clk 0:01:07]} 26. f5 {[%clk 0:01:04]}  exf5 {[%clk 0:01:03]} 27. exf5 {[%clk 0:01:04]}  Qd3 {[%clk 0:00:51]} 28. Kg1 {[%clk 0:00:20]}  Qe3+ {[%clk 0:00:48]} 29. Kh1 {[%clk 0:00:21]}  Qd3 {[%clk 0:00:48]} 30. Qf2 {[%clk 0:00:11]}  Qd5 {[%clk 0:00:35]} 31. h4 {[%clk 0:00:08]}  Qxf5 {[%clk 0:00:33]} 32. Qxf5 {[%clk 0:00:08]}  gxf5 {[%clk 0:00:34]} 33. Be2 {[%clk 0:00:09]}  Ba6 {[%clk 0:00:22]} 34. Rxf5 {[%clk 0:00:08]}  Bxc3 {[%clk 0:00:18]} 35. Rxf7 {[%clk 0:00:09]}  Rb1+ {[%clk 0:00:16]} 36. Rf1 {[%clk 0:00:09]}  Be5 {[%clk 0:00:17]} 37. Rxb1 {[%clk 0:00:09]} 1-0


[Site "https://www.chess.com"]

[Event "Titled Tuesday Blitz November 22 Early 2022"]
[White "Levitan, Caleb Levi"]
[Black "Sipila, Vilka"]
[WhiteFideId "14332620"]
[BlackFideId "505455"]
[WhiteElo "1963"]
[BlackElo "2347"]
[Result "1-0"]
[Round "02"]
[TimeControl "180+1"]
[Date "2022.11.23"]
[WhiteClock "0:00:03"]
[BlackClock "0:00:52"]

1. e4 {[%clk 0:02:58]}  d6 {[%clk 0:02:32]} 2. d4 {[%clk 0:02:55]}  Nf6 {[%clk 0:02:32]} 3. Nc3 {[%clk 0:02:53]}  g6 {[%clk 0:02:32]} 4. Bf4 {[%clk 0:02:52]}  Bg7 {[%clk 0:02:28]} 5. Qd2 {[%clk 0:02:51]}  Nc6 {[%clk 0:02:28]} 6. O-O-O {[%clk 0:02:45]}  O-O {[%clk 0:02:26]} 7. Bh6 {[%clk 0:02:45]}  e5 {[%clk 0:02:23]} 8. dxe5 {[%clk 0:02:24]}  dxe5 {[%clk 0:02:22]} 9. Bxg7 {[%clk 0:02:23]}  Qxd2+ {[%clk 0:02:16]} 10. Rxd2 {[%clk 0:02:22]}  Kxg7 {[%clk 0:02:17]} 11. Nf3 {[%clk 0:02:15]}  Bg4 {[%clk 0:02:17]} 12. Be2 {[%clk 0:01:59]}  Bxf3 {[%clk 0:02:16]} 13. Bxf3 {[%clk 0:01:55]}  Nd4 {[%clk 0:02:17]} 14. Rhd1 {[%clk 0:01:54]}  c6 {[%clk 0:02:11]} 15. Ne2 {[%clk 0:01:54]}  Nxf3 {[%clk 0:02:10]} 16. gxf3 {[%clk 0:01:54]}  Rfe8 {[%clk 0:02:05]} 17. Nc3 {[%clk 0:01:46]}  Re7 {[%clk 0:02:03]} 18. Na4 {[%clk 0:01:45]}  Nh5 {[%clk 0:01:58]} 19. Rd7 {[%clk 0:01:43]}  Rae8 {[%clk 0:01:57]} 20. Nc5 {[%clk 0:01:31]}  b6 {[%clk 0:01:56]} 21. Na6 {[%clk 0:01:18]}  Nf4 {[%clk 0:01:43]} 22. Nc7 {[%clk 0:01:06]}  Ne2+ {[%clk 0:01:41]} 23. Kb1 {[%clk 0:01:04]}  Nd4 {[%clk 0:01:42]} 24. Nxe8+ {[%clk 0:00:57]}  Rxe8 {[%clk 0:01:43]} 25. Rxa7 {[%clk 0:00:53]}  Nxf3 {[%clk 0:01:43]} 26. Rdd7 {[%clk 0:00:50]}  Rf8 {[%clk 0:01:43]} 27. c3 {[%clk 0:00:46]}  Nxh2 {[%clk 0:01:42]} 28. Rab7 {[%clk 0:00:44]}  b5 {[%clk 0:01:41]} 29. c4 {[%clk 0:00:41]}  bxc4 {[%clk 0:01:39]} 30. a4 {[%clk 0:00:41]}  Ng4 {[%clk 0:01:29]} 31. a5 {[%clk 0:00:38]}  Nf6 {[%clk 0:01:30]} 32. Re7 {[%clk 0:00:29]}  Nxe4 {[%clk 0:01:29]} 33. a6 {[%clk 0:00:29]}  Nc5 {[%clk 0:01:28]} 34. Rb6 {[%clk 0:00:24]}  Nxa6 {[%clk 0:01:12]} 35. Rxa6 {[%clk 0:00:24]}  h5 {[%clk 0:01:12]} 36. Rxe5 {[%clk 0:00:23]}  h4 {[%clk 0:01:11]} 37. Rxc6 {[%clk 0:00:20]}  h3 {[%clk 0:01:09]} 38. Re1 {[%clk 0:00:20]}  Rh8 {[%clk 0:01:08]} 39. Rh1 {[%clk 0:00:21]}  Rh4 {[%clk 0:01:07]} 40. Kc2 {[%clk 0:00:21]}  Kh6 {[%clk 0:01:05]} 41. Kc3 {[%clk 0:00:21]}  Kg5 {[%clk 0:01:03]} 42. Rxc4 {[%clk 0:00:22]}  Rh8 {[%clk 0:01:03]} 43. b4 {[%clk 0:00:22]}  Kf5 {[%clk 0:00:59]} 44. b5 {[%clk 0:00:21]}  g5 {[%clk 0:00:59]} 45. b6 {[%clk 0:00:22]}  g4 {[%clk 0:01:00]} 46. b7 {[%clk 0:00:17]}  Rb8 {[%clk 0:01:00]} 47. Rc7 {[%clk 0:00:17]}  Ke6 {[%clk 0:01:00]} 48. Kd3 {[%clk 0:00:17]}  f5 {[%clk 0:01:00]} 49. Ke3 {[%clk 0:00:17]}  Kd6 {[%clk 0:01:00]} 50. Rg7 {[%clk 0:00:13]}  Ke5 {[%clk 0:01:00]} 51. Re7+ {[%clk 0:00:09]}  Kf6 {[%clk 0:01:00]} 52. Rc7 {[%clk 0:00:09]}  Ke5 {[%clk 0:01:00]} 53. f4+ {[%clk 0:00:05]}  Kd6 {[%clk 0:00:59]} 54. Rf7 {[%clk 0:00:05]}  Ke6 {[%clk 0:00:59]} 55. Rg7 {[%clk 0:00:05]}  Kd5 {[%clk 0:00:59]} 56. Rd1+ {[%clk 0:00:03]}  Kc6 {[%clk 0:00:57]} 57. Rc1+ {[%clk 0:00:04]}  Kb6 {[%clk 0:00:56]} 58. Rc8 {[%clk 0:00:03]}  Rxb7 {[%clk 0:00:55]} 59. Rxb7+ {[%clk 0:00:03]}  Kxb7 {[%clk 0:00:56]} 60. Rf8 {[%clk 0:00:03]}  Kc6 {[%clk 0:00:54]} 61. Rxf5 {[%clk 0:00:03]}  g3 {[%clk 0:00:54]} 62. Rh5 {[%clk 0:00:03]}  h2 {[%clk 0:00:53]} 63. Kf3 {[%clk 0:00:02]}  Kd6 {[%clk 0:00:52]} 64. Kxg3 {[%clk 0:00:03]}  h1=Q {[%clk 0:00:52]} 65. Rxh1 {[%clk 0:00:03]} 1-0


[Site "https://www.chess.com"]

[Event "Titled Tuesday Blitz November 22 Early 2022"]
[White "Lorenzo De La Riva, Lazaro"]
[Black "Shimanov, Aleksandr"]
[WhiteFideId "2268809"]
[BlackFideId "4198603"]
[WhiteElo "2294"]
[BlackElo "2605"]
[Result "0-1"]
[Round "02"]
[TimeControl "180+1"]
[Date "2022.11.23"]
[WhiteClock "0:00:04"]
[BlackClock "0:01:13"]

1. e4 {[%clk 0:03:00]}  d5 {[%clk 0:02:59]} 2. exd5 {[%clk 0:02:53]}  Qxd5 {[%clk 0:03:00]} 3. Nc3 {[%clk 0:02:48]}  Qe5+ {[%clk 0:02:59]} 4. Be2 {[%clk 0:02:44]}  Bg4 {[%clk 0:02:58]} 5. d4 {[%clk 0:02:40]}  Bxe2 {[%clk 0:02:58]} 6. Ngxe2 {[%clk 0:02:38]}  Qa5 {[%clk 0:02:57]} 7. Bf4 {[%clk 0:02:34]}  Nf6 {[%clk 0:02:56]} 8. Qd2 {[%clk 0:02:32]}  e6 {[%clk 0:02:54]} 9. O-O {[%clk 0:02:31]}  Nc6 {[%clk 0:02:53]} 10. a3 {[%clk 0:02:26]}  O-O-O {[%clk 0:02:53]} 11. b4 {[%clk 0:02:25]}  Qf5 {[%clk 0:02:52]} 12. Be3 {[%clk 0:02:19]}  h5 {[%clk 0:02:48]} 13. b5 {[%clk 0:02:18]}  Na5 {[%clk 0:02:48]} 14. Qd3 {[%clk 0:01:52]}  Qxd3 {[%clk 0:02:42]} 15. cxd3 {[%clk 0:01:53]}  Be7 {[%clk 0:02:37]} 16. Ne4 {[%clk 0:01:47]}  Nd5 {[%clk 0:02:35]} 17. Bd2 {[%clk 0:01:45]}  Nb3 {[%clk 0:02:35]} 18. Rab1 {[%clk 0:01:37]}  Nxd2 {[%clk 0:02:33]} 19. Nxd2 {[%clk 0:01:37]}  Rd7 {[%clk 0:02:14]} 20. Rfc1 {[%clk 0:01:32]}  Rhd8 {[%clk 0:02:13]} 21. a4 {[%clk 0:01:29]}  Kb8 {[%clk 0:02:13]} 22. Nc4 {[%clk 0:01:21]}  Bf6 {[%clk 0:02:12]} 23. Ne5 {[%clk 0:01:16]}  Bxe5 {[%clk 0:02:12]} 24. dxe5 {[%clk 0:01:17]}  Ne7 {[%clk 0:02:12]} 25. d4 {[%clk 0:01:11]}  Nf5 {[%clk 0:02:12]} 26. Nf4 {[%clk 0:00:56]}  Nxd4 {[%clk 0:02:06]} 27. Re1 {[%clk 0:00:46]}  g6 {[%clk 0:02:05]} 28. a5 {[%clk 0:00:44]}  b6 {[%clk 0:02:02]} 29. a6 {[%clk 0:00:38]}  Nc2 {[%clk 0:01:56]} 30. Rf1 {[%clk 0:00:28]}  Na3 {[%clk 0:01:54]} 31. Rb3 {[%clk 0:00:27]}  Nc4 {[%clk 0:01:54]} 32. Rc3 {[%clk 0:00:20]}  Nxe5 {[%clk 0:01:53]} 33. h3 {[%clk 0:00:18]}  Nd3 {[%clk 0:01:50]} 34. Nxd3 {[%clk 0:00:12]}  Rxd3 {[%clk 0:01:51]} 35. Rc4 {[%clk 0:00:13]}  Rb3 {[%clk 0:01:47]} 36. Rfc1 {[%clk 0:00:13]}  Rd7 {[%clk 0:01:47]} 37. Rc6 {[%clk 0:00:10]}  Rxb5 {[%clk 0:01:47]} 38. Kh2 {[%clk 0:00:11]}  Ra5 {[%clk 0:01:47]} 39. g4 {[%clk 0:00:11]}  hxg4 {[%clk 0:01:46]} 40. hxg4 {[%clk 0:00:12]}  Rxa6 {[%clk 0:01:47]} 41. f4 {[%clk 0:00:12]}  Ra3 {[%clk 0:01:45]} 42. R1c2 {[%clk 0:00:11]}  Kb7 {[%clk 0:01:45]} 43. R6c3 {[%clk 0:00:10]}  Rxc3 {[%clk 0:01:44]} 44. Rxc3 {[%clk 0:00:10]}  c5 {[%clk 0:01:45]} 45. Kg3 {[%clk 0:00:11]}  Kc6 {[%clk 0:01:45]} 46. f5 {[%clk 0:00:11]}  gxf5 {[%clk 0:01:45]} 47. gxf5 {[%clk 0:00:12]}  exf5 {[%clk 0:01:45]} 48. Kf4 {[%clk 0:00:13]}  b5 {[%clk 0:01:45]} 49. Ke5 {[%clk 0:00:13]}  b4 {[%clk 0:01:45]} 50. Rc1 {[%clk 0:00:12]}  Kb5 {[%clk 0:01:44]} 51. Kf4 {[%clk 0:00:12]}  b3 {[%clk 0:01:44]} 52. Ke3 {[%clk 0:00:13]}  c4 {[%clk 0:01:44]} 53. Rb1 {[%clk 0:00:13]}  Kb4 {[%clk 0:01:44]} 54. Ke2 {[%clk 0:00:12]}  c3 {[%clk 0:01:44]} 55. Rh1 {[%clk 0:00:11]}  c2 {[%clk 0:01:44]} 56. Rh4+ {[%clk 0:00:12]}  Ka3 {[%clk 0:01:44]} 57. Rh1 {[%clk 0:00:11]}  b2 {[%clk 0:01:42]} 58. Rh3+ {[%clk 0:00:11]}  Ka2 {[%clk 0:01:42]} 59. Rh4 {[%clk 0:00:08]}  c1=Q {[%clk 0:01:36]} 60. Ra4+ {[%clk 0:00:08]}  Kb3 {[%clk 0:01:36]} 61. Ra6 {[%clk 0:00:07]}  b1=Q {[%clk 0:01:26]} 62. Kf3 {[%clk 0:00:04]}  Qe4+ {[%clk 0:01:25]} 63. Kf2 {[%clk 0:00:04]}  Qcf4+ {[%clk 0:01:25]} 64. Kg1 {[%clk 0:00:04]}  Rd1# {[%clk 0:01:13]} 0-1


[Site "https://www.chess.com"]